fUST/lending_fUST_20241226
["ID","MTS","AMOUNT","RATE_DAILY","PERIOD"]
[346703322,1735214946137,-500.0,0.00015999,2]
[346703323,1735214946158,-234.96534465,0.00015999,2]
[346703324,1735214946180,-500.0,0.00015999,2]
[346703325,1735214946201,-240.55236008,0.00015999,2]
[346703326,1735214946224,-500.0,0.00015999,2]
[346703327,1735214946248,-500.0,0.00015999,2]
[346703328,1735214946271,-169.3,0.00016273,2]
[346703329,1735214946293,-500.0,0.00016273,2]
[346703330,1735214946314,-500.0,0.00016438,2]
[346703331,1735214946335,-500.0,0.00016438,2]
[346703332,1735214946355,-328.7152614,0.00016547,2]
[346703333,1735214960453,-160.0,0.00023292,120]
[346703334,1735214960483,-500.0,0.00024,120]
[346703335,1735214960510,-489.92221,0.00024,120]
[346703336,1735214960538,-160.0,0.00024453,120]
[346703337,1735214960568,-2551.64219952,0.00025,120]
[346703338,1735214960593,-448.00438588,0.000255,120]
[346703339,1735214960626,-160.0,0.00026506,120]
[346703340,1735214960652,-160.0,0.00026671,120]
[346703341,1735214960680,-226.37461,0.00027,120]
[346703342,1735214960705,-629.85700285,0.00027,120]
[346703343,1735214960730,-2333.0,0.00027,120]
[346703344,1735214960757,-1220.85,0.00027397,120]
[346703345,1735214960783,-1220.85,0.00027397,120]
[346703346,1735214960809,-1220.85,0.00027397,120]
[346703347,1735214960833,-1220.85,0.00027397,120]
[346703348,1735214960859,-1220.85,0.00027397,120]
[346703349,1735214960884,-1220.85,0.00027397,120]
[346703350,1735214960909,-1220.85,0.00027397,120]
[346703351,1735214960933,-1220.85,0.00027397,120]
[346703352,1735214960957,-1220.85,0.00027397,120]
[346703353,1735214960981,-1220.85,0.00027397,120]
[346703354,1735214961005,-1220.85,0.00027397,120]
[346703355,1735214961030,-1220.85,0.00027397,120]
[346703356,1735214961055,-1220.85,0.00027397,120]
[346703357,1735214961080,-1220.85,0.00027397,120]
[346703358,1735214961104,-1220.85,0.00027397,120]
[346703359,1735214961128,-1220.85,0.00027397,120]
[346703360,1735214961162,-1220.85,0.00027397,120]
[346703361,1735214961191,-1220.85,0.00027397,120]
[346703362,1735214961216,-1220.85,0.00027397,120]
[346703363,1735214961241,-1220.85,0.00027397,120]
[346703364,1735214961268,-1220.85,0.00027397,120]
[346703365,1735214961295,-1220.85,0.00027397,120]
[346703366,1735214961319,-1220.85,0.00027397,120]
[346703367,1735214961343,-1220.85792271,0.00027397,120]
[346703368,1735214961369,-6250.0,0.00027397,120]
[346703369,1735214961396,-226.37461,0.000276,120]
[346703370,1735214961423,-605.582,0.0002779,120]
[346703371,1735214961450,-160.0,0.00028074,120]
[346703372,1735214961479,-226.37461,0.000282,120]
[346703373,1735214961506,-226.37461,0.000288,120]
[346703374,1735214961533,-605.609,0.0002899,120]
[346703375,1735214961560,-200.0,0.00029,120]
[346703376,1735214961591,-285.44,0.0002927,120]
[346703377,1735214961617,-150.5,0.0002927,120]
[346703378,1735214961643,-271.48,0.0002927,120]
[346703379,1735214961667,-150.5,0.0002928,120]
[346703380,1735214961692,-150.5,0.0002928,120]
[346703381,1735214961716,-150.5,0.0002928,120]
[346703382,1735214961740,-150.5,0.0002929,120]
[346703383,1735214961910,-150.5,0.0002929,120]
[346703384,1735214961939,-150.5,0.0002929,120]
[346703385,1735214961965,-254.13,0.0002929,120]
[346703386,1735214961989,-226.37461,0.000294,120]
[346703387,1735214962018,-167.87310654,0.000299,120]
[346703388,1735214962042,-2873.0,0.0002997,120]
[346703389,1735214962067,-2873.0,0.0002997,120]
[346703390,1735214962091,-2873.0,0.0002998,120]
[346703391,1735214962117,-2873.0,0.0002998,120]
[346703392,1735214962142,-2873.0,0.0002998,120]
[346703393,1735214962167,-2879.0,0.0002998,120]
[346703394,1735214962192,-2873.0,0.0002999,120]
[346703395,1735214962216,-2873.0,0.0002999,120]
[346703396,1735214962240,-2873.0,0.0002999,120]
[346703397,1735214962268,-2873.0,0.0002999,120]
[346703398,1735214962294,-11670.82930837,0.0003,120]
[346703399,1735214962321,-151.0,0.0003,120]
[346703400,1735214962346,-151.0,0.0003,120]
[346703401,1735214962371,-226.37461,0.0003,120]
[346703402,1735214962395,-768.74433146,0.0003,120]
[346703403,1735214962421,-605.561,0.0003019,120]
[346703404,1735214962446,-254.02479,0.000303,120]
[346703405,1735214962474,-211.68733,0.000305,120]
[346703406,1735214962499,-226.37461,0.000306,120]
[346703407,1735214962527,-326.56464,0.000307,120]
[346703408,1735214962555,-1000.0,0.00031,120]
[346703409,1735214962582,-20000.0,0.00031,120]
[346703410,1735214962609,-160.0,0.00031053,120]
[346703411,1735214962634,-263.10445,0.000312,120]
[346703412,1735214962660,-211.68733,0.000312,120]
[346703413,1735214962685,-226.37461,0.000312,120]
[346703414,1735214962713,-151.0,0.0003126,120]
[346703415,1735214962739,-605.601,0.0003139,120]
[346703416,1735214962765,-254.02479,0.000314,120]
[346703417,1735214962789,-151.0,0.00031452,120]
[346703418,1735214962815,-226.37468,0.000318,120]
[346703419,1735214962839,-211.68733,0.000319,120]
[346703420,1735214962864,-6250.0,0.00031963,120]
[346703421,1735214962890,-1000.0,0.00032,120]
[346703422,1735214962916,-20000.0,0.00032,120]
[346703423,1735214962940,-254.02479,0.000325,120]
[346703424,1735214962965,-19012.166,0.000325,120]
[346703425,1735214962990,-19012.167,0.000325,120]
[346703426,1735214963016,-19012.167,0.000325,120]
[346703427,1735214963040,-19012.167,0.000325,120]
[346703428,1735214963066,-19012.167,0.000325,120]
[346703429,1735214963090,-151.0,0.00032521,120]
[346703430,1735214963116,-605.551,0.0003259,120]
[346703431,1735214982624,-2002.63186659,0.00019178,60]
[346703432,1735214982686,-234.25724099,0.00023,60]
[346703433,1735214982713,-202.6097812,0.0002325,60]
[346703434,1735214982742,-162.367254,0.0002411,67]
[346703435,1735214982869,-162.367254,0.0002411,80]
[346703436,1735214982899,-162.367254,0.0002411,93]
[346703437,1735214982925,-162.367254,0.0002411,106]
[346703438,1735214982950,-162.367254,0.0002411,119]
[346703439,1735214982980,-897.54625409,0.00026,60]
[346703440,1735214983011,-595851.11858713,0.00026632,90]
[346703441,1735214988562,-600000.0,0.00026632,90]
[346703442,1735215011805,-600000.0,0.00026632,90]
[346703443,1735215016291,-600000.0,0.00026632,90]
[346703444,1735215019545,-600000.0,0.00026632,90]
[346703491,1735215032001,-57.4547386,0.00016547,2]
[346703493,1735215032010,-300.0,0.000181,7]
[346703495,1735215032020,-41.52010374,0.00018412,2]
[346703534,1735215037042,-600000.0,0.00026632,90]
[346703547,1735215038018,-423.47990354,0.00018412,2]
[346703548,1735215038029,-606.572,0.000185,2]
[346703549,1735215038039,-227.0098644,0.00018638,2]
[346703550,1735215038048,-306.8026702,0.0001874,2]
[346703551,1735215038057,-1514.8540025,0.000189,2]
[346703552,1735215038069,-273.42483826,0.000189,2]
[346703553,1735215038078,-302.72757545,0.00019,2]
[346703554,1735215038088,-302.72757545,0.00019,2]
[346703555,1735215038098,-179.12832759,0.00019026,2]
[346703556,1735215038107,-536.63,0.00019026,2]
[346703557,1735215038118,-248.56025814,0.00019027,2]
[346703558,1735215038127,-500.0,0.00019027,2]
[346703559,1735215038137,-500.0,0.00019027,2]
[346703560,1735215038146,-500.0,0.00019027,2]
[346703561,1735215038155,-500.0,0.00019027,2]
[346703562,1735215038164,-92.26548153,0.00019027,2]
[346703563,1735215038176,-407.73451847,0.00019027,2]
[346703564,1735215038186,-500.0,0.00019027,2]
[346703565,1735215038195,-217.91540628,0.00019027,2]
[346703566,1735215038204,-500.0,0.00019027,2]
[346703567,1735215038213,-165.2531309,0.00019027,2]
[346703568,1735215038229,-334.7468691,0.00019027,2]
[346703569,1735215038238,-605.13005195,0.00019027,2]
[346703570,1735215038248,-531.70916217,0.00019027,2]
[346703571,1735215038257,-122.88392771,0.00019027,2]
[346703572,1735215038269,-377.11607229,0.00019027,2]
[346703573,1735215038278,-500.0,0.00019027,2]
[346703574,1735215038288,-414.72832759,0.00019027,2]
[346703575,1735215038297,-177.527,0.00019027,2]
[346703576,1735215038306,-500.0,0.00019027,2]
[346703577,1735215038315,-500.0,0.00019027,2]
[346703578,1735215038324,-156.94373206,0.00019027,2]
[346703579,1735215038334,-150.0,0.00019027,2]
[346703580,1735215038344,-200.0,0.00019027,2]
[346703581,1735215038353,-500.0,0.00019027,2]
[346703582,1735215038362,-500.0,0.00019027,2]
[346703583,1735215038371,-500.0,0.00019027,2]
[346703584,1735215038380,-364.1187436,0.00019027,2]
[346703585,1735215038392,-135.8812564,0.00019027,2]
[346703586,1735215038401,-500.0,0.00019027,2]
[346703587,1735215038410,-500.0,0.00019027,2]
[346703588,1735215038419,-500.0,0.00019027,2]
[346703589,1735215038428,-500.0,0.00019027,2]
[346703590,1735215038437,-500.0,0.00019027,2]
[346703591,1735215038446,-500.0,0.00019027,2]
[346703592,1735215038457,-500.0,0.00019027,2]
[346703593,1735215038466,-500.0,0.00019027,2]
[346703594,1735215038476,-500.0,0.00019027,2]
[346703595,1735215038488,-482.2687436,0.00019027,2]
[346703596,1735215038499,-17.7312564,0.00019027,2]
[346703597,1735215038509,-596.24,0.00019027,2]
[346703598,1735215038518,-500.0,0.00019027,2]
[346703599,1735215038529,-770.47,0.00019027,2]
[346703600,1735215038537,-500.0,0.00019027,2]
[346703601,1735215038546,-500.0,0.00019027,2]
[346703602,1735215038556,-425.65624273,0.00019028,2]
[346703609,1735215040023,-1354.55067164,0.00019028,2]
[346703610,1735215040035,-451.5634232,0.00019028,2]
[346703611,1735215040046,-1421.43839753,0.00019028,2]
[346703612,1735215040072,-9335.84688821,0.00019028,2]
[346703613,1735215042193,-600000.0,0.00026632,90]
[346703628,1735215043143,-294.86329618,0.00019027,2]
[346703629,1735215043155,-205.13670382,0.00019027,2]
[346703630,1735215043164,-25467.44100939,0.00019028,2]
[346703631,1735215043173,-155657.43269427,0.00019035,2]
[346703632,1735215043183,-158.10495567,0.00019078,2]
[346703633,1735215043192,-7717.78697757,0.00019078,2]
[346703634,1735215043201,-2401.20681978,0.00019078,2]
[346703635,1735215043211,-173.41178162,0.00019078,2]
[346703636,1735215043220,-173.41178162,0.00019078,2]
[346703637,1735215043230,-173.41178162,0.00019078,2]
[346703638,1735215043240,-173.41178162,0.00019078,2]
[346703639,1735215043250,-173.41,0.00019078,2]
[346703640,1735215043259,-162.57354527,0.00019078,2]
[346703641,1735215043270,-162.57354527,0.00019078,2]
[346703642,1735215043279,-162.57354527,0.00019078,2]
[346703643,1735215043289,-162.57354527,0.00019078,2]
[346703644,1735215043299,-162.57354527,0.00019078,2]
[346703645,1735215043308,-162.57354527,0.00019078,2]
[346703646,1735215043317,-162.57354527,0.00019078,2]
[346703647,1735215043326,-162.57,0.00019078,2]
[346703648,1735215043336,-500.0,0.00019176,2]
[346703649,1735215043346,-500.0,0.00019176,2]
[346703650,1735215043356,-733.94,0.00019177,2]
[346703651,1735215043365,-596.95,0.00019177,2]
[346703652,1735215043375,-158.20976362,0.00019177,2]
[346703653,1735215043384,-500.0,0.00019177,2]
[346703654,1735215043393,-500.0,0.00019177,2]
[346703655,1735215043403,-500.0,0.00019177,2]
[346703656,1735215043412,-14122.29769909,0.00019178,4]
[346703657,1735215043425,-1260.62651095,0.00019178,4]
[346703661,1735215046034,-9658.51228529,0.00019178,4]
[346703662,1735215047261,-6000000.0,0.00026632,90]
[346703665,1735215132096,-160.0,0.00025951,120]
[346703666,1735215132128,-1245452.97197346,0.00026632,90]
[346703667,1735215132154,-400.0,0.00027397,60]
[346703668,1735215250384,500.0,0.00019726,120]
[346703669,1735215330836,160.0,0.00022468,120]
[346703670,1735215443887,188.0,0.00019726,30]
[346703671,1735215463369,500.0,0.00023,120]
[346703672,1735215476899,500.0,0.00023,120]
[346703673,1735215587700,391.86211728,0.00010568,2]
[346703674,1735215587726,910.50790893,0.00010568,2]
[346703675,1735215599630,6562.22,0.00013,10]
[346703676,1735215948139,-1596.75323162,0.00010358,2]
[346703677,1735215970884,6266.06175329,0.0001,2]
[346703679,1735216033104,-531.33419018,0.0001,2]
[346703681,1735216041143,-168.3963,0.0001,2]
[346703682,1735216065680,1247.77339304,0.0002032,120]
[346703683,1735216070292,1388.15295872,0.0002032,30]
[346703684,1735216071337,1270.25963068,0.0002032,120]
[346703685,1735216088733,829.91105036,0.0002032,30]
[346703687,1735216094560,230.62061327,0.0002032,120]
[346703688,1735216100516,226.41948424,0.0002032,60]
[346703689,1735216101180,188.0,0.0002,120]
[346703690,1735216101218,704.99484933,9.9e-05,2]
[346703691,1735216101244,403.51025464,9.9e-05,2]
[346703692,1735216104565,486.42406735,0.0002032,120]
[346703693,1735216107138,1220.67271336,0.0002032,30]
[346703694,1735216112234,672.0180135,0.0002032,120]
[346703695,1735216112980,3163.37745344,0.0002032,30]
[346703696,1735216114902,2357.10235378,0.0002,120]
[346703697,1735216115506,314.56439498,0.0002032,120]
[346703698,1735216115912,237.93616068,0.0002032,30]
[346703699,1735216116185,340.39608882,0.0002032,30]
[346703700,1735216116771,1776.46453542,0.0002032,30]
[346703701,1735216117495,1580.2491584,0.0002032,120]
[346703702,1735216117740,1813.47438772,0.0002032,30]
[346703703,1735216117895,2523.31293494,0.0002032,120]
[346703704,1735216118388,500.0,0.0002032,120]
[346703705,1735216119859,413.11767862,0.0002032,120]
[346703706,1735216119894,330.95876352,0.0002032,120]
[346703707,1735216120407,590.3303,0.0002032,120]
[346703708,1735216120466,1512.3992193,0.0002032,120]
[346703709,1735216120853,302.16882053,0.0002032,120]
[346703711,1735216121147,181.98569348,0.0002032,120]
[346703713,1735216121256,1512.63281494,0.0002032,120]
[346703714,1735216121392,211.20050552,0.0002032,120]
[346703715,1735216121951,194.44210306,0.0002032,120]
[346703716,1735216122046,178.93197679,0.0002032,120]
[346703717,1735216122188,633.32243251,0.0002032,120]
[346703718,1735216122432,550.25,0.0002032,120]
[346703719,1735216122507,310.06040688,0.0002032,120]
[346703720,1735216123179,-1270.004203,0.0001,2]
[346703721,1735216123256,-1270.004203,0.0001,2]
[346703722,1735216123325,-794.89797976,0.0001,2]
[346703723,1735216145112,-3599.30137077,0.0001,2]
[346703724,1735216145132,-200.6953933,0.00010258,2]
[346703725,1735216145153,-300.0,0.00010567,2]
[346703726,1735216145174,-300.0,0.00010567,2]
[346703727,1735216145195,-8132.75022815,0.00010568,2]
[346703728,1735216148186,-299.99999999,0.00010568,2]
[346703729,1735216150085,-264.87974565,0.00010568,2]
[346703730,1735216150107,-200.69539328,0.00012066,2]
[346703731,1735216150128,-34.47636729,0.00013873,2]
[346703732,1735216152092,-166.21902599,0.00013873,2]
[346703733,1735216152113,-400.0,0.00013973,2]
[346703734,1735216152133,-172.30508086,0.00016376,2]
[346703735,1735216156078,-76.95205658,0.00016376,2]
[346703736,1735216156099,-5618.89697378,0.00017,7]
[346703737,1735216162123,-972.5596088,0.00017108,2]
[346703738,1735216162152,-300.212836,0.00017787,2]
[346703739,1735216162174,-588.33,0.00017816,2]
[346703740,1735216162196,-300.0,0.000181,7]
[346703741,1735216162219,-623.613,0.0001822,2]
[346703742,1735216162240,-624.86,0.00018726,7]
[346703743,1735216162262,-1221.56631927,0.0001874,2]
[346703744,1735216162284,-1221.56631927,0.00018849,2]
[346703745,1735216220071,381.86501385,0.00014234,2]
[346703746,1735216220096,3431.87661942,0.00014234,2]
[346703747,1735216220116,1186.25836673,0.00014234,2]
[346703748,1735216220350,5000.0,0.00014234,2]
[346703749,1735216220634,5000.0,0.00014234,2]
[346703750,1735216220915,4060.74335533,0.00014234,2]
[346703800,1735216232305,-939.25664467,0.00014234,2]
[346703802,1735216232315,-5000.0,0.00014234,2]
[346703804,1735216232324,-1192.18589384,0.000189,2]
[346703806,1735216232334,-173.17680237,0.000189,2]
[346703808,1735216232344,-9274.13545617,0.00018906,2]
[346703810,1735216232354,-1221.56631927,0.00018932,2]
[346703811,1735216232363,-559.47,0.00018993,2]
[346703814,1735216232374,-500.0,0.00018993,2]
[346703816,1735216232384,-500.0,0.00018993,2]
[346703818,1735216232394,-500.0,0.00018993,2]
[346703820,1735216232403,-5001.41647567,0.00019,2]
[346703821,1735216232412,-1698.8280932,0.00019,10]
[346703823,1735216232422,-302.72757545,0.00019,2]
[346703824,1735216232431,-302.72757545,0.00019,2]
[346703825,1735216232441,-1221.56631927,0.00019014,2]
[346703826,1735216232451,-500.0,0.00019027,2]
[346703828,1735216232461,-371.33,0.00019077,2]
[346703830,1735216232471,-500.0,0.00019077,2]
[346703831,1735216232482,-363.95364188,0.00019077,2]
[346703833,1735216232492,-1120.45,0.00019077,2]
[346703834,1735216232502,-180.81,0.00019077,2]
[346703835,1735216232512,-500.0,0.00019077,2]
[346703836,1735216232523,-236.84471062,0.00019077,2]
[346703837,1735216232533,-703.36,0.00019077,2]
[346703838,1735216232543,-188.15528938,0.00019077,2]
[346703839,1735216232553,-204.77,0.00019077,2]
[346703840,1735216232562,-542.28,0.00019077,2]
[346703841,1735216232572,-500.0,0.00019077,2]
[346703842,1735216232582,-500.0,0.00019077,2]
[346703843,1735216232594,-500.0,0.00019077,2]
[346703844,1735216232603,-281.30101802,0.00019077,2]
[346703845,1735216232613,-233.90333911,0.00019077,2]
[346703846,1735216232622,-177.527,0.00019078,2]
[346703847,1735216232631,-676.84788392,0.00019078,2]
[346703848,1735216232640,-19339.60339407,0.00019078,2]
[346703849,1735216232649,-465.00011621,0.00019111,2]
[346703850,1735216232659,-1221.56631927,0.00019123,2]
[346703851,1735216232668,-2760631.26350467,0.00019178,4]
[346703852,1735216232679,-2002.63186659,0.00019178,60]
[346703853,1735216232688,-500.0,0.00019178,2]
[346703854,1735216232697,-302.983964,0.00019178,2]
[346703855,1735216232706,-150.451,0.00019189,2]
[346703856,1735216232716,-150.256,0.00019189,2]
[346703857,1735216232725,-250.0,0.00019189,2]
[346703858,1735216232734,-150.632,0.00019189,2]
[346703859,1735216232743,-302.72757545,0.0001919,2]
[346703860,1735216232752,-302.72757545,0.0001919,2]
[346703861,1735216232762,-151.0,0.000192,2]
[346703862,1735216232771,-151.0,0.000192,2]
[346703863,1735216232780,-1221.56631927,0.00019205,2]
[346703864,1735216232789,-53227.8148422,0.00019248,2]
[346703865,1735216232799,-500.0,0.00019267,2]
[346703866,1735216232809,-500.0,0.00019267,2]
[346703867,1735216232818,-500.0,0.00019267,2]
[346703868,1735216232827,-152.31,0.00019281,2]
[346703869,1735216232842,-1221.56631927,0.00019288,2]
[346703870,1735216232851,-151.0,0.00019288,7]
[346703871,1735216232860,-192.41,0.000193,2]
[346703872,1735216232870,-500.0,0.00019301,2]
[346703873,1735216232880,-500.0,0.00019301,2]
[346703874,1735216232890,-534.0,0.00019307,2]
[346703876,1735216232899,-2115.0,0.00019307,2]
[346703877,1735216232908,-2355.0,0.00019307,2]
[346703878,1735216232918,-500.0,0.00019351,2]
[346703879,1735216232928,-1120.45,0.00019351,2]
[346703880,1735216232937,-500.0,0.00019351,2]
[346703881,1735216232946,-500.0,0.00019351,2]
[346703882,1735216232956,-173.52,0.00019351,2]
[346703884,1735216232965,-1221.56631927,0.0001937,2]
[346703885,1735216232974,-302.72757545,0.0001938,2]
[346703886,1735216232984,-302.72757545,0.0001938,2]
[346703887,1735216232993,-2000.0,0.000194,2]
[346703888,1735216233003,-1221.56631927,0.00019479,2]
[346703889,1735216233012,-500.0,0.00019495,14]
[346703890,1735216233021,-152.72,0.000195,31]
[346703891,1735216233030,-152.72,0.000195,31]
[346703892,1735216233040,-152.72,0.000195,31]
[346703893,1735216233049,-152.72,0.000195,31]
[346703894,1735216233060,-152.72,0.000195,31]
[346703895,1735216233070,-152.72,0.000195,31]
[346703896,1735216233079,-152.72,0.000195,31]
[346703897,1735216233090,-500.0,0.00019504,14]
[346703898,1735216233100,-500.0,0.00019513,14]
[346703899,1735216233110,-500.0,0.00019522,14]
[346703901,1735216233120,-500.0,0.0001953,14]
[346703903,1735216233129,-500.0,0.00019539,14]
[346703905,1735216233141,-500.0,0.00019541,2]
[346703907,1735216233150,-500.0,0.00019541,2]
[346703909,1735216233160,-500.0,0.00019541,2]
[346703910,1735216233169,-500.0,0.00019548,14]
[346703911,1735216233179,-1221.56631927,0.00019562,2]
[346703912,1735216233188,-1000.0,0.0001957,2]
[346703913,1735216233197,-302.72757545,0.0001957,2]
[346703914,1735216233206,-302.72757545,0.0001957,2]
[346703915,1735216233217,-500.0,0.00019571,2]
[346703916,1735216233226,-500.0,0.00019571,2]
[346703917,1735216233236,-500.0,0.00019572,10]
[346703918,1735216233245,-500.0,0.00019572,10]
[346703919,1735216233254,-150.15,0.00019572,10]
[346703920,1735216233264,-172.60269198,0.00019572,10]
[346703921,1735216233273,-500.0,0.00019572,10]
[346703922,1735216233283,-291.33393218,0.00019572,10]
[346703923,1735216233292,-150.15,0.00019572,10]
[346703924,1735216233302,-150.15,0.00019572,10]
[346703925,1735216233311,-150.15,0.00019572,10]
[346703926,1735216233322,-500.0,0.00019572,10]
[346703927,1735216233332,-500.0,0.00019572,10]
[346703928,1735216233345,-150.15,0.00019572,2]
[346703929,1735216233355,-500.0,0.00019572,10]
[346703930,1735216233365,-500.0,0.00019575,2]
[346703931,1735216233375,-236.69466351,0.00019575,2]
[346703932,1735216233385,-7619.96,0.000196,2]
[346703933,1735216233396,-21499.58,0.000196,2]
[346703934,1735216233406,-18021.49,0.000196,2]
[346703935,1735216233416,-300.0,0.000196,8]
[346703936,1735216233426,-469.31228529,0.00019625,2]
[346703937,1735216233436,-1120.45,0.00019625,2]
[346703938,1735216233446,-310.75,0.00019625,2]
[346703939,1735216233456,-237.43,0.00019625,2]
[346703940,1735216233467,-666.0,0.00019626,2]
[346703941,1735216233478,-1221.56631927,0.00019644,2]
[346703942,1735216233488,-151.0,0.00019695,7]
[346703943,1735216233499,-1221.56631927,0.00019753,2]
[346703944,1735216233509,-302.72757545,0.0001976,2]
[346703945,1735216233519,-302.72757545,0.0001976,2]
[346703946,1735216233529,-500.0,0.00019815,2]
[346703947,1735216233539,-500.0,0.00019815,2]
[346703948,1735216233549,-500.0,0.00019815,2]
[346703949,1735216233560,-502.37,0.00019832,2]
[346703950,1735216233570,-4065.74,0.00019832,2]
[346703951,1735216233580,-1116.14992146,0.00019839,2]
[346703952,1735216233591,-849.85,0.00019846,10]
[346703953,1735216233601,-500.0,0.00019846,10]
[346703954,1735216233611,-150.15,0.00019846,10]
[346703955,1735216233621,-500.0,0.00019846,10]
[346703956,1735216233630,-150.15,0.00019846,10]
[346703957,1735216233640,-150.15,0.00019846,10]
[346703958,1735216233649,-272.99852619,0.00019846,10]
[346703959,1735216233659,-500.0,0.00019846,10]
[346703960,1735216233669,-500.0,0.00019846,10]
[346703961,1735216233679,-927.37869264,0.00019846,10]
[346703962,1735216233689,-500.0,0.00019849,2]
[346703963,1735216233699,-1120.45,0.00019899,2]
[346703964,1735216233708,-454.09136318,0.0001995,4]
[346703965,1735216233718,-454.09136318,0.0001995,4]
[346703966,1735216233727,-1116.14992146,0.00019966,2]
[346703967,1735216233736,-4753.849999,0.0001999,2]
[346703968,1735216233747,-2423.71860023,0.00019999,2]
[346703969,1735216233756,-42931.2783764,0.0002,2]
[346703970,1735216233766,-1221.5613557,0.0002,3]
[346703971,1735216233775,-1716.0,0.0002,3]
[346703972,1735216233785,-1716.0,0.0002,3]
[346703973,1735216233794,-1716.0,0.0002,3]
[346703974,1735216233804,-1716.0,0.0002,3]
[346703975,1735216233813,-1130.72019927,0.0002,5]
[346703976,1735216233931,-183.42867279,0.0002,2]
[346703977,1735216233941,-1000.0,0.0002,2]
[346703978,1735216233950,-150.0,0.0002,2]
[346703979,1735216233960,-500.0,0.00020089,2]
[346703980,1735216233969,-500.0,0.00020089,2]
[346703981,1735216233979,-500.0,0.00020089,2]
[346703982,1735216233988,-1116.14992146,0.00020093,2]
[346703983,1735216233998,-151.0,0.00020103,15]
[346703984,1735216234007,-500.0,0.0002012,10]
[346703985,1735216234017,-156.18287877,0.0002012,10]
[346703986,1735216234026,-669.88995973,0.0002012,10]
[346703987,1735216234036,-150.15,0.0002012,10]
[346703988,1735216234045,-500.0,0.0002012,10]
[346703989,1735216234055,-500.0,0.0002012,10]
[346703990,1735216234065,-500.0,0.00020123,2]
[346703991,1735216234074,-514.03556569,0.0002014,4]
[346703992,1735216234085,-454.09136318,0.0002014,4]
[346703993,1735216234094,-1120.45,0.00020173,2]
[346703994,1735216234103,-1116.14992146,0.0002022,2]
[346703995,1735216234112,-173.17680237,0.0002022,2]
[346703996,1735216234122,-499.0,0.00020273,2]
[346703997,1735216234131,-3858.89348878,0.0002032,2]
[346703998,1735216234140,-1978106.99678946,0.0002032,10]
[346703999,1735216234211,-2146.97961106,0.0002032,10]
[346704000,1735216234223,-467.505,0.0002032,10]
[346704001,1735216234235,-1174.89196696,0.0002032,10]
[346704002,1735216234247,-6396.57615816,0.0002032,10]
[346704003,1735216234258,-4876.40137679,0.0002032,10]
[346704037,1735216240357,-2112.07724835,0.0002032,10]
[346704186,1735216243178,-4513.51568123,0.0002032,10]
[346704187,1735216243189,-614922.82538299,0.0002032,10]
[346704188,1735216243199,-925.0,0.0002032,10]
[346704204,1735216246140,-265.3,0.000193,10]
[346704205,1735216246153,-734.7,0.000193,10]
[346704206,1735216246162,-349.55633761,0.0002032,10]
[346704207,1735216246198,-10299.799781,0.0002032,10]
[346704225,1735216372453,1313.84541613,0.0002032,30]
[346704226,1735216470746,500.0,0.00020298,120]
[346704227,1735216599608,1735.0,0.00023,120]
[346704228,1735216625687,1603.27421942,0.00023,120]
[346704230,1735216731360,1464.59524154,0.00020332,60]
[346704231,1735216782505,25000.0,0.00020332,120]
[346704234,1735217156146,-400.0,0.00012893,2]
[346704235,1735217156174,-400.0,0.00013023,2]